Cogmind - Beta 16 @@@ ROGUE MODE // 2025.11.18 @ 17:03:14 Player: tthaar Result: Destroyed by V9-7DN(R) with Subdweller Laser Performance ------------- Evolutions (0) 0 Regions Visited (2) 400 Robots Destroyed (17) 85 Value Destroyed (401) 401 Prototype IDs (2) 40 Alien Tech Used (0) 0 Bonus (0) 0 TOTAL SCORE: 926 Bonus ------- None Cogmind --------- Core Integrity 0/250 Matter 293/300 Energy 199/200 System Corruption 0% Temperature Cool (6) Movement Core (200) Ox3 Location -10/Subcaves Parts ------- > --- POWER (1) -------- Subdweller Power Source > --- PROPULSION (2) --- (None) > --- UTILITY (2) ------ Small Storage Unit > --- WEAPON (2) ------- Light Assault Rifle > --- INVENTORY (8) ---- Light Ion Engine Aluminum Leg Aluminum Leg Improved Terrain Scanner Mining Laser Scrap Shield Fragment (43) Peak State ------------ > --- POWER ------------ Ion Engine > --- PROPULSION ------- Light Treads Light Treads > --- UTILITY ---------- Small Storage Unit Improved Terrain Scanner > --- WEAPON ----------- EM Pulse Gun Medium Laser > --- INVENTORY -------- Light Ion Engine Aluminum Leg Aluminum Leg Light Assault Rifle Mining Laser [Rating: 9] Favorites ----------- Power Ion Engine Engine Ion Engine Propulsion Light Treads Treads Light Treads Utility Small Storage Unit Device Subdweller Optics Storage Small Storage Unit Weapon Medium Laser Energy Gun Medium Laser Ballistic Gun Subdweller Machine Gun Special Weapon Mining Laser Build | -11 -10 -10 ------- Run | Yrd Mat Sub Slots Evolved . | . . . Power . | . . . Propulsion . | . . . Utility . | . . . Weapon . | . . . Parts Attached 14 | 7 3 4 Power 2 | 1 . 1 Engine 2 | 1 . 1 Core . | . . . Reactor . | . . . Propulsion 2 | 2 . . Treads 2 | 2 . . Leg . | . . . Wheel . | . . . Hover . | . . . Flight . | . . . Utility 4 | 2 1 1 Device 3 | 1 1 1 Storage 1 | 1 . . Processor . | . . . Hackware . | . . . Protection . | . . . Artifact . | . . . Weapon 6 | 2 2 2 Energy Gun 3 | 2 . 1 Energy Cannon . | . . . Ballistic Gun 2 | . 1 1 Ballistic Cannon . | . . . Launcher . | . . . Special Weapon 1 | . 1 . Impact Weapon . | . . . Slashing Weapon . | . . . Piercing Weapon . | . . . Special Melee Weapon . | . . . Unidentified Prototypes . | . . . Parts Lost 7 | . . 7 Power . | . . . Propulsion 2 | . . 2 Utility 2 | . . 2 Weapon 3 | . . 3 Highest Loss Streak 3 | . . 3 To Critical Strikes . | . . . Average Backups 6 | 3 5 6 Power . | . 1 1 Propulsion 1 | 1 2 2 Utility . | . . 1 Weapon 2 | 1 2 2 Tool/Special . | . . . Unused Backups 3 | . . 3 Power 1 | . . 1 Propulsion 2 | . . 2 Utility . | . . . Weapon . | . . . Tool/Special . | . . . Average Slot Usage (%) 77 | . 100 71 Engine 14 | . 14 14 Treads 6 | . 28 1 Device 13 | . 14 13 Storage 14 | . 14 14 Energy Gun 15 | . 21 13 Ballistic Gun 11 | . 3 14 Peak Build Rating 9 | 9 9 9 Average Rating 7 | 6 7 7 On Entrance 5 | . 9 7 Avg Prop Armor Cover (%) . | . . . Naked Turns . | . . . Heaviest Build 18 | 15 15 18 Greatest Support 40 | 40 40 40 Greatest Overweight (x) 5 | . . 5 Average Overweight (x) 2 | . . 4 Largest Inventory Capacity 8 | 8 8 8 Average Capacity 7 | 7 8 8 Most Carried 8 | 6 6 8 Average Carried 7 | 3 5 7 Final Capacity 8 | 8 8 8 Final Carried 6 | 5 6 6 Class Distribution -------------------- 100% | Mutant Dominant Class ---------------- Mutant | -10/Materials Mutant | -10/Subcaves Resources | -11 -10 -10 ----------- Run | Yrd Mat Sub Matter Collected 397 | 270 52 75 Remotely . | . . . Salvage Created 632 | 100 370 162 Parts 41 | 10 23 8 Haulers Intercepted . | . . . Recyclers Shooed 2 | 1 1 . Parts Field Recycled . | . . . Retrieved Matter . | . . . Parts Self-Destructed 14 | . . 14 Prevented . | . . . Parts Restored . | . . . Kills | -11 -10 -10 ------- Run | Yrd Mat Sub Combat Hostiles Destroyed 12 | . 9 3 Guns 12 | . 9 3 Classes Destroyed 5 | 1 3 1 Tunneler 4 | 4 . . Recycler 1 | . 1 . Swarmer 3 | . 3 . Grunt 6 | . 6 . Subdweller 3 | . . 3 Best Kill Streak 3 | 1 3 1 Combat Bots Only 3 | . 3 1 Max Kills in Single Turn 1 | 1 1 1 Gunslinging . | . . . Exploded . | . . . Melee . | . . . Uniques/NPCs Destroyed . | . . . Combat | -11 -10 -10 -------- Run | Yrd Mat Sub Hostile Shots Fired 74 | . 35 39 Missed 17 | . 8 9 Hits 57 | . 27 30 Projectile 57 | . 27 30 AOE 3 | . . 3 Critical Strikes 1 | . . 1 Damage Taken 1041 | . 297 744 Core 258 | . 79 179 Absorbed by Shields . | . . . Core Remaining (%) 100 | 100 . . Volleys Fired 71 | 11 30 30 Largest 2 | 2 2 2 Hottest 100 | 90 100 100 Shots Fired 125 | 22 56 47 Gun 116 | 22 52 42 Cannon . | . . . Launcher . | . . . Special 9 | . 4 5 Kinetic 36 | . 12 24 Thermal 58 | 11 30 17 Explosive . | . . . Electromagnetic 31 | 11 14 6 Robot Hit Streak 14 | 5 6 14 Robot Miss Streak 3 | 2 2 3 Penetration Max . | . . . Secondary Targets 2 | . 2 . Max Gunslinging Chain 1 | . 1 . Shots Hit Robots 75 | 13 32 30 Core Hits 35 | 4 19 12 Critical Kills . | . . . Critical Parts Destroyed . | . . . Critical Strikes 2 | . 2 . Burn 1 | . 1 . Corrupt 1 | . 1 . Melee Attacks . | . . . Impact . | . . . Slashing . | . . . Piercing . | . . . Sneak Attacks . | . . . Combat Hostiles . | . . . Follow-up Attacks . | . . . Damage Inflicted 912 | 180 403 329 Guns 912 | 180 403 329 Cannons . | . . . Explosions . | . . . Melee . | . . . Ramming . | . . . Kinetic 203 | . 53 150 Thermal 337 | 62 189 86 Explosive . | . . . Electromagnetic 372 | 118 161 93 Impact . | . . . Slashing . | . . . Piercing . | . . . Highest Corruption . | . . . Average Corruption . | . . . Corruption Purged . | . . . Corruption Blocked . | . . . Overload Shots . | . . . Overflow Damage . | . . . Projectiles . | . . . Explosions . | . . . Melee . | . . . Knockbacks . | . . . Impact . | . . . Kinetic . | . . . Secondary . | . . . Self-Inflicted Damage . | . . . Shots . | . . . Rammed . | . . . Targets Rammed . | . . . Kicked . | . . . Crushed . | . . . Highest Temperature 291 | 184 291 3 Average Temperature 78 | 71 81 3 Received Heat Transfer 171 | . 135 36 Siege Activations . | . . . Martial Activations . | . . . Shielding Activations . | . . . Robots Disrupted . | . . . Combat Hostiles . | . . . Robots Corrupted . | . . . Combat Hostiles . | . . . Parts Fried 3 | . . 3 Impact Corruptions . | . . . Robots Melted . | . . . Combat Hostiles . | . . . Parts Melted 1 | . 1 . Heat Transferred 1073 | 185 629 259 Parts Sabotaged . | . . . Parts Stolen . | . . . Parts Stripped . | . . . Power Chain Reactions . | . . . Alert | -11 -10 -10 ------- Run | Yrd Mat Sub Maximum Alert Level . | . . . Low Security (%) 100 | 100 100 . Level 1 . | . . . Level 2 . | . . . Level 3 . | . . . Level 4 . | . . . Level 5 . | . . . High Security . | . . . Max Security . | . . . Peak Influence 166 | 5 166 . Initial . | . . . Average 31 | . 47 . Influence Increases 317 | 20 297 . Destroy 0b10 Robot/C 180 | . 180 . Destroy 0b10 Robot/NC 25 | 20 5 . Destroy Leader 30 | . 30 . Successful Hack 33 | . 33 . Destroy Structure 4 | . 4 . Lose Combat Pursuer 45 | . 45 . Influence Decreases 317 | 20 139 158 Entered New Map 77 | . . 77 Time Decay 210 | 20 139 51 Lost Part 30 | . . 30 Squads Dispatched 2 | . 2 . Investigation . | . . . Extermination . | . . . Reinforcement 2 | . 2 . Assault . | . . . Garrison . | . . . Intercept . | . . . Searches Triggered . | . . . Construction Impeded . | . . . Haulers Reinforced . | . . . Active Scanning Responses . | . . . Cargo Convoy Interrupts . | . . . Stealth | -11 -10 -10 --------- Run | Yrd Mat Sub Distress Signals 4 | . 4 . Communications Jammed . | . . . Distress Signals . | . . . Times Spotted 20 | . 14 6 Peak Tracking Total 5 | . 5 2 Tactical Retreats 2 | . 2 . Traps | -11 -10 -10 ------- Run | Yrd Mat Sub Traps Triggered . | . . . Indirectly . | . . . Trap Hack Attempts . | . . . Triggered . | . . . Disarmed . | . . . Reprogrammed . | . . . Reused . | . . . Traps Extracted . | . . . Installed . | . . . Triggered . | . . . Machines | -11 -10 -10 ---------- Run | Yrd Mat Sub Machines Disabled . | . . . Max in Single Turn . | . . . Machines Repaired . | . . . Machines Dismantled . | . . . Machines Sabotaged . | . . . Overloaded Fab Kills . | . . . Hacking | -11 -10 -10 --------- Run | Yrd Mat Sub Machines Accessed 4 | . 3 1 Terminals 3 | . 3 . Fabricators . | . . . Repair Stations . | . . . Recycling Units . | . . . Scanalyzers . | . . . Garrison Access . | . . . Total Hacks 16 | . 12 4 Successful 11 | . 7 4 Failed 4 | . 4 . Catastrophic 1 | . 1 . Database Lockouts 1 | . 1 . Manual 7 | . 7 . Terminals 12 | . 12 . Fabricators . | . . . Repair Stations . | . . . Recycling Units . | . . . Scanalyzers . | . . . Garrison Access . | . . . Terminal Hacks 11 | . 7 4 Record 4 | . . 4 Robot Schematic 1 | . 1 . Robot Analysis 1 | . 1 . Prototype ID Bank 1 | . 1 . Terminal Index 1 | . 1 . Hauler Manifests 1 | . 1 . Registered Components 1 | . 1 . Zone Layout 1 | . 1 . Fabricator Hacks . | . . . Repair Station Hacks . | . . . Recycling Unit Hacks . | . . . Scanalyzer . | . . . Garrison Access Hacks . | . . . Unauthorized Hacks . | . . . Terminals . | . . . Fabricators . | . . . Repair Stations . | . . . Recycling Units . | . . . Scanalyzers . | . . . Garrison Access . | . . . Data Cores Recovered . | . . . Used . | . . . Hacking Detections 3 | . 3 . Full Trace Events . | . . . Feedback Events . | . . . Feedback Blocked . | . . . Robot Schematics Acquired 1 | . 1 . Robots Built . | . . . Authchips . | . . . Time . | . . . Total Robot Build Rating . | . . . Part Schematics Acquired . | . . . Parts Built . | . . . Authchips . | . . . Time . | . . . Total Part Build Rating . | . . . Part Studies Acquired . | . . . Parts Repaired . | . . . Time . | . . . Parts Recycled . | . . . Recycled Matter . | . . . Retrieved Matter . | . . . Retrieved Components . | . . . Parts Scanalyzed . | . . . Part Schematics Acquired . | . . . Parts Damaged . | . . . Bothacking | -11 -10 -10 ------------ Run | Yrd Mat Sub Used RIF Installer . | . . . Robots Hacked . | . . . Non-combat . | . . . Combat . | . . . Robot Hacks Applied . | . . . Relay Couplers Released . | . . . Fabnet Peak Effective % . | . . . Robots Rewired . | . . . Allies Hacked . | . . . Hacks Repelled . | . . . Allies | -11 -10 -10 -------- Run | Yrd Mat Sub Total Allies . | . . . Largest Group . | . . . Highest-Rated Group . | . . . Highest-Rated Ally . | . . . Total Orders . | . . . Ally Attacks . | . . . Total Damage . | . . . Kills . | . . . Allies Corrupted . | . . . Allies Melted . | . . . Intel | -11 -10 -10 ------- Run | Yrd Mat Sub Active Infowar (turns) 2228 | 27 476 1725 Optics 1656 | . . 1656 Terrain 129 | 27 102 . Seismic 443 | . 374 69 Robot Analysis Total 1 | . 1 . Derelict Logs Recovered . | . . . Drone Launches . | . . . Drone Recoveries . | . . . Exploration | -11 -10 -10 ------------- Run | Yrd Mat Sub Turns Passed 2525 | 252 476 1797 Spaces Moved 925 | 128 207 590 Core 551 | 1 . 550 Treads 374 | 127 207 40 Legs . | . . . Wheels . | . . . Hover . | . . . Flight . | . . . Fastest Speed 50 | 50 160 160 Average Speed 242 | 159 160 288 Slowest Speed 300 | 160 160 300 Overloaded Moves . | . . . Propulsion Burnouts . | . . . Robots Hopped . | . . . Potential Cave-ins 2 | . 2 . Cave-ins Triggered . | . . . Exploration Rate (%) 23 | 7 31 33 Regions Visited 2 Branch Regions 1 Pre-discovered Areas 2 | . . 2 Known Exits Taken . | . . . Unknown Exits Taken 2 | 1 1 . Scrap Searched . | . . . Spaces Dug 4 | . 4 . Terrain Destroyed 4 | . 4 . Melee . | . . . Projectile 4 | . 4 . AOE . | . . . Terrain Rammed . | . . . Walls Destroyed . | . . . Machines Disabled . | . . . Actions | -11 -10 -10 --------- Run | Yrd Mat Sub Total 1070 | 151 288 631 Wait 47 | . 47 . Move 923 | 127 206 590 Hop . | . . . Pick Up 9 | 6 1 2 Fast Attach 7 | 6 . 1 Attach 3 | 1 . 2 Detach . | . . . Swap 8 | . 4 4 Drop 2 | . . 2 Fire 71 | 11 30 30 Melee . | . . . Ram . | . . . Kick . | . . . Crush . | . . . Escape Stasis . | . . . Rewire . | . . . Trap . | . . . Miscellaneous . | . . . Route ------- -11/Scrapyard -10/Materials (discovered 2 exits: [*Mat] / *Sub) -10/Subcaves History --------- Turn | Location | Event 14 | -11/Scrapyard | Discovered new exit (range 16) 253 | -11/Scrapyard | Entered Materials 273 | -10/Materials | Central database locked down 273 | -10/Materials | Discovered new exit (range 18) 311 | -10/Materials | Build established: Mutant 717 | -10/Materials | Discovered new exit (range 7) 729 | -10/Materials | Entered Subcaves 730 | -10/Subcaves | Approached by a straggling Scientist 791 | -10/Subcaves | Visited Clippyterm 796 | -10/Subcaves | Learned location of Extension (-5) 796 | -10/Subcaves | Learned Factory emergency access door positions 837 | -10/Subcaves | Lost 3 parts (2n1u) 2342 | -10/Subcaves | Learned location of Zion (-6) 2342 | -10/Subcaves | Met a Zionite searching for "candidates" 2472 | -10/Subcaves | Ambushed by Subdweller buried in earth 2473 | -10/Subcaves | Core integrity fell below 50% 2516 | -10/Subcaves | Core integrity fell below 20% 2526 | -10/Subcaves | Destroyed by V9-7DN(R) with Subdweller Laser Last Messages --------------- 02478_ QL-FGC(R) affixes Scrap Shield Fragment to Scrap Shield. 02481_ QL-FGC(R) misfires. 02487_ Disposable Heat Sink fried. 02487_ Sub. Monowheel fried. 02487_ Sub. Laser fried. 02487_ QL-FGC(R) destroyed. 02488_ Subatomizers dissect the Sub. Monowheel. 02493_ Acquired 3 matter. 02496_ Acquired 23 matter. 02509_ Riot Gun destroyed. 02511_ Sub. Optics destroyed. ZZ-C7J(c): "I think it's somewhere southeast of here" 02515_ V9-7DN(R) affixes Scrap Shield Fragment to Scrap Shield. 02516_ Subatomizers dissect the Sub. Monowheel. 02516_ ZZ-C7J(c) destroyed. 02521_ V9-7DN(R) affixes Scrap Shield Fragment to Scrap Shield. Map ----- +----------------------------------------------------+ | | | | | | | ?????????????????????????????????????????????????? | | ?????????????????????????????????????????????????? | | ?????????????????????????????????????????????????? | | ?????????????????????????????????????????????????? | | ?????????????????????????????????????????????????? | | ?????????????????????????????????????????????????? | | ?????????????????????????????????????????????????? | | ?????????????????????????????????????????????????? | | ?????????????????????????????????????????????????? | | ?????????????????????????????????????????????????? | | ?????????????????????????????????????????????????? | | ?????????????????????????????????????????????????? | | ?????????????????????????????????????????????????? | | ?????????####???????????#####????????????????????? | | ????????## ????##???### ####???####??????????? | | ???????## #?### #### ### #??????????? | | ???????# ## # # ????????????? | | ???????# ; ???????????????? | | ????????# R= ##??##????????????? | | ???##????## ## % # #????????????? | | ? ? #?????# ### & =% #?????????????? | | ? ? ###?#?# ### " ##?????????????? | | ?# ? # ??# ## @ ###??????????????? | | ## ?? ??# ; ; #????????????????? | | # ??? #### #########????????????????? | | ? ???# ##R ## ## #????#???????????????????? | | ? ???# # ##### "###""###?????????????????? | | ?# ??## # ##???# """""""##????????????????? | | ?# #?# ##????# " """""#????????????????? | | ?? #?# ##?????##""""""""" ????????????????? | | ### ## ## #???????##### ""#?????????????????? | | ## ####????????????#####?????????????????? | | ### #?????????????????????????????????????? | | ## #?????????????????????????????????????? | | # ## #?????????????????????????????????????? | | ?# #?????????????????????????????????????? | | ?## ####??????????????????????????????????? | | ??# ##?????????????????????????????????? | | ??# #?????????????????????????????????? | | ?## #?????????????????????????????????? | | ## ### ##?????????????????????????????????? | | # ###### ##??????????????????????????????????? | | ### ####???????????????????????????????????? | | ### ###???????????????????????????????????? | | ###### ##??????????????????????????????????? | | #??## ##?????????????????????????????????? | | #?## ##????????????????????????????????? | +----------------------------------------------------+ Best States ------------- Heat Dissipation 25 Energy Generation 15 Energy Capacity 250 Matter Stores 300 Matter Capacity 300 Sight Range 21 Terrain Scan Range 16 Terrain Scan Density 10 Evasion (%) 40 Recoil Reduction 2 Item Schematics ----------------- None Robot Schematics ------------------ G-34 Mercenary | -10/Materials | Hacked Fabricated ------------ Nothing Repaired ---------- Nothing Studied --------- None Alien Tech Used ----------------- None Achievements -------------- Do Not Disturb Challenges ------------ None Game ------ Seed ActiveRainbowExtrapolator Manual? 0 Play Time 00:20:47 Cumulative 18.9 hours Start 2025.11.18 @ 16:40:10 End 2025.11.18 @ 17:03:14 Sessions 1 Manual Loads 0 Difficulty Rogue Special Mode None Game No. 18 Rogue 18 Adventurer 0 Explorer 0 Win Type - Total 0 Types 0/0/0/0/0/0/0/0/0/0 Lore% 10 Gallery% 13 Achievement% 14 Wizard Run 0 Options --------- Layout 1 ASCII 0 Keyboard 0 Movement Mouse Keybinds 0 Fullscreen 2 Font 48/Smallcaps Map View 50x35 Zoom Use 0% Tactical HUD 1 Map Filters NONE Filters NONE Steam 1 RUN: 850fbc3b-28a5-441d-93a1-deb41b4b13fc